[Event "Charlotte IM-D May 2022"]
[Site "Charlotte"]
[Date "2022.05.05"]
[Round "1.1"]
[White "Rodriguez Rivera, Pedro"]
[Black "Rosenberg, Evan S"]
[Result "1-0"]
[ECO "D05"]
[WhiteElo "2197"]
[BlackElo "2035"]
[Annotator "TA"]
[PlyCount "105"]
[EventDate "2022.05.04"]
[EventType "tourn"]
[EventCountry "USA"]
[SourceTitle "playchess.com"]
[Source "ChessBase"]
[SourceQuality "1"]
[TimeControl "5400+30"]

{[%evp 12,105,0,-9,0,-19,-8,-19,-10,-20,0,-22,-27,-26,0,0,0,0,0,-8,0,0,0,0,28,39,24,17,11,0,0,0,0,0,0,0,0,0,0,0,0,0,0,0,50,34,60,20,82,67,77,77,106,106,126,115,100,103,129,71,103,113,222,237,206,183,352,354,1037,1037,1037,1037,708,600,625,559,791,784,1116,747,1817,1691,1541,1362,6099,6012,5337,4816,8595,8136,29983,29984,29987,29988,29988,29989]} 1. d4 {[%emt 0:03:06]} Nf6 {[%emt 0:00:31]} 2. Nf3 {[%emt 0:00:33]} e6 {[%emt 0:00:20]} 3. e3 {[%emt 0:00:11]} b6 {[%emt 0:01:01]} 4. Bd3 {[%emt 0:00:15]} Bb7 {[%emt 0:00:21]} 5. Nbd2 {[%emt 1:28:55]} d5 {[%emt 1:30:47]} 6. Ne5 {[%emt 0:00:00]} Bd6 {[%emt 0:00:30]} 7. O-O {[%emt 0:01:00]} O-O {[%emt 0:00:00] D05: Colle System with ...e6.} 8. f4 {[%emt 0:00:00]} Ne4 {[%emt 0:00:00] has lost popularity (8...c5).} 9. Nxe4 {[%emt 0:00:00]} dxe4 {[%emt 0:00:00] The position is equal.} 10. Bc4 {[%emt 0:00:00]} c5 {[%emt 0:00:00]} 11. c3 {[%emt 0:00:00] [#]} Qc7 $146 {[%emt 0:00:00]} ({Predecessor:} 11... Nc6 12. Qe2 Qe7 13. Bd2 Rac8 14. Be1 Na5 15. Bb5 f6 16. Nc4 Nxc4 17. Bxc4 cxd4 18. cxd4 {0-1 (76) Norowitz,Y (2420)-Zhigalko,S (2572) Chess.com INT 2021}) 12. Qe2 {[%emt 0:00:00]} Rc8 {[%emt 0:00:00] aiming for ...cxd4.} 13. b3 {[%emt 0:00:00]} Nc6 {[%emt 0:00:00]} 14. Nxc6 {[%emt 0:00:00]} Bxc6 {[%emt 0:00:00]} (14... Qxc6 {feels hotter.} 15. f5 exf5 16. Rxf5 Rf8) 15. Bb2 {[%emt 0:00:00]} Rcb8 {[%emt 0:00:00] Hoping for ...b5.} 16. a4 {[%emt 0:00:00] Prevents b5.} cxd4 {[%emt 0:00:00]} 17. cxd4 {[%emt 0:00:00]} Qd7 {[%emt 0:00:00]} 18. Qg4 {[%emt 0:00:00][%cal Od4d5]} Bf8 {[%emt 0:00:00]} 19. f5 {[%emt 0:00:00][%cal Rf5e6]} Bd5 {[%emt 0:00:00]} 20. fxe6 {[%emt 0:00:00]} (20. Ba3 $5 {[%cal Ra3f8]} exf5 21. Qxf5 (21. Rxf5 Bxc4 22. bxc4 g6 $17) 21... Qxf5 22. Rxf5 Bxc4 23. bxc4 $14) 20... Qxe6 {[%emt 0:00:00]} 21. Qxe6 {[%emt 0:00:00]} fxe6 {[%emt 0:00:00]} 22. Ba3 {[%emt 0:00:00]} Bxa3 {[%emt 0:00:00]} 23. Rxa3 {[%emt 0:00:00]} Rc8 {[%emt 0:00:00]} 24. a5 {[%emt 0:00:00]} b5 {[%emt 0:00:00]} 25. Bxb5 {[%emt 0:00:00][%cal Ob5c4]} Rc3 {[%emt 0:00:00][%csl LRb3,LRe3] Inhibits Bc4.} 26. Re1 {[%emt 0:00:00]} Rb8 {[%emt 0:00:00]} 27. Ba4 {[%emt 0:00:00]} Bc4 {[%emt 0:00:00]} 28. Ra2 {[%emt 0:00:00]} Bb5 {[%emt 0:00:00]} 29. Kf2 {[%emt 0:00:00]} Rf8+ {[%emt 0:00:32] [#]} (29... g5 $11 {keeps the balance.}) 30. Kg3 $1 $16 {[%emt 0:00:00]} Bxa4 {[%emt 0:00:26]} 31. bxa4 $14 {[%emt 0:00:00][%mdl 4096] Endgame KRR-KRR} Rf5 {[%emt 0:00:35]} 32. Rb2 {[%emt 0:00:00]} Rxa5 {[%emt 0:04:35]} 33. Kf4 {[%emt 0:00:00]} Rxa4 {[%emt 0:00:18]} 34. Kxe4 {[%emt 0:13:30]} Raa3 {[%emt 0:00:57]} 35. Rb7 {[%emt 0:00:00]} (35. Rb8+ $142 Kf7 36. Rf1+ Kg6 37. Rf3) 35... h6 {[%emt 0:00:32]} 36. Re2 {[%emt 0:01:00] Against Rc2} Kh7 {[%emt 0:01:56]} (36... a5 $16 {was necessary.}) 37. Re7 $18 {[%emt 0:00:00]} Rc6 {[%emt 0:01:19]} 38. Rf2 {[%emt 0:00:00]} Ra5 $2 {[%emt 0:01:16] [#]} (38... e5 39. Rxe5 Rcc3) 39. h4 $1 {[%emt 0:01:30][%cal Bh2h4,Bh4h5][%mdl 32]} Rf5 $2 {[%emt 0:03:31]} (39... Rc8 40. Rff7 (40. Rxe6 Ra1 $18) 40... Rg8 41. Rxa7 Rh5) 40. Rxf5 {[%emt 0:00:00]} exf5+ {[%emt 0:00:01]} 41. Kxf5 {[%emt 0:00:00] KR-KR} Rf6+ {[%emt 0:00:10]} 42. Kg4 {[%emt 0:00:00]} Rf2 {[%emt 0:00:36]} 43. Kg3 {[%emt 0:00:00]} Ra2 {[%emt 0:00:12]} 44. h5 {[%emt 0:00:00]} a5 {[%emt 0:00:02]} 45. Ra7 {[%emt 0:00:00] And now d5 would win.} a4 {[%emt 0:00:08]} 46. d5 {[%emt 0:00:00][%cal Bd4d5,Bd5d6,Bd6d7][%mdl 32]} a3 {[%emt 0:00:05]} 47. e4 {[%emt 0:00:00][%cal Be3e4,Be4e5][%mdl 32] Black must now prevent d6.} Kg8 {[%emt 0:00:09]} 48. d6 {[%emt 0:00:00] d7 would kill now.} Rd2 {[%emt 0:00:15]} 49. e5 {[%emt 0:00:00]} a2 {[%emt 0:00:06]} 50. Kf4 {[%emt 0:00:00]} Kf8 {[%emt 0:00:09]} 51. Kf5 {[%emt 0:00:00] White mates.} Kg8 {[%emt 0:02:53]} 52. Ke6 {[%emt 0:00:00]} g6 {[%emt 0:01:39]} 53. d7 {[%emt 0:07:00] Weighted Error Value: White=0.10 (very precise) /Black=0.44} 1-0

[Event "Charlotte IM-D May 2022"]
[Site "Charlotte"]
[Date "2022.05.05"]
[Round "1.3"]
[White "Chen, Ryo"]
[Black "Woodward, Andy"]
[Result "0-1"]
[ECO "B93"]
[WhiteElo "2265"]
[BlackElo "2354"]
[Annotator "TA"]
[PlyCount "70"]
[EventDate "2022.05.04"]
[EventType "tourn"]
[EventCountry "USA"]
[SourceTitle "playchess.com"]
[Source "ChessBase"]
[SourceQuality "1"]
[TimeControl "5400+30"]

{[%evp 20,70,12,25,32,22,29,16,16,14,20,-14,0,0,0,0,0,-3,0,-7,0,-52,-34,-48,-12,-20,-8,-87,-76,-138,-110,-106,-98,-124,-126,-242,-243,-239,-116,-128,-127,-183,-191,-170,-175,-308,-312,-352,-356,-361,-269,-908,-907]} 1. e4 {[%emt 0:00:05]} c5 {[%emt 0:00:11]} 2. Nf3 {[%emt 0:00:34]} d6 {[%emt 0:00:10]} 3. d4 {[%emt 0:00:06]} cxd4 {[%emt 0:00:06]} 4. Nxd4 {[%emt 0:00:06]} Nf6 {[%emt 0:00:08]} 5. Nc3 {[%emt 0:00:06]} a6 {[%emt 0:00:07]} 6. f4 {[%emt 0:00:24]} e5 {[%emt 0:00:25]} 7. Nf3 {[%emt 0:00:14]} Nbd7 {[%emt 0:04:50][%cal Bb8d7,Bd7c5,Bc5e4][%mdl 32]} 8. a4 {[%emt 0:00:20]} Be7 {[%emt 0:02:07]} 9. Bc4 {[%emt 0:00:31]} O-O {[%emt 0:00:20]} 10. O-O {[%emt 0:00:09]} b6 {[%emt 0:03:27]} 11. Qe2 {[%emt 0:04:53]} Bb7 {[%emt 0:02:02] B93: Sicilian Najdorf: 6 f4.} 12. Kh1 {[%emt 0:03:28]} Nc5 {[%emt 0:06:41]} 13. fxe5 {[%emt 0:01:10]} Nfxe4 {[%emt 0:01:42] [#] The position is equal.} 14. Nxe4 $146 {[%emt 0:13:16]} ({Predecessor:} 14. Nd5 dxe5 15. Rd1 b5 16. axb5 axb5 17. Rxa8 Bxa8 18. Ba2 Bf6 19. Be3 Qa5 20. Nxf6+ gxf6 21. Bb1 Kh8 22. c3 Qc7 23. Qxb5 Rg8 24. Qc4 Qb7 25. Bxc5 Nxc5 26. Qh4 {1-0 (26) Tseshkovsky,V (2543)-Panarin,M (2424) Krasnodar 2004}) 14... Nxe4 {[%emt 0:02:33]} 15. Rd1 {[%emt 0:06:13]} Qc7 {[%emt 0:13:35]} 16. Bd5 {[%emt 0:01:43] Threatens to win with Qxe4.} Bxd5 {[%emt 0:00:37]} 17. Rxd5 {[%emt 0:00:24]} Nc5 {[%emt 0:00:16]} 18. Bf4 {[%emt 0:01:25][%cal Re5d6]} dxe5 {[%emt 0:03:55]} 19. Bxe5 {[%emt 0:13:01]} Qc6 {[%emt 0:02:58][%csl LRa4,LRd5]} 20. Rad1 {[%emt 0:11:52]} ({White should play} 20. c4 $11 Rfe8 21. Nd4) 20... Rfe8 $1 $15 {[%emt 0:04:35]} 21. Qc4 {[%emt 0:08:40]} Qg6 {[%emt 0:04:27]} 22. R5d4 {[%emt 0:04:36]} h5 {[%emt 0:01:28] Against Rg4} 23. h3 {[%emt 0:06:26] [#]} (23. Re1 $11) 23... Rac8 $1 $17 {[%emt 0:01:20] aiming for ...Ne6.} 24. Qd5 {[%emt 0:17:10]} ({White should try} 24. Qe2) 24... Ne6 {[%emt 0:05:54]} 25. R4d2 {[%emt 0:01:42]} Rxc2 {[%emt 0:00:48]} 26. Qd7 {[%emt 0:04:56]} Rcc8 {[%emt 0:00:17]} 27. Kh2 {[%emt 0:00:00] [#]} (27. Bd6 $17 Bg5 28. Nxg5 Nxg5 29. Bc7) 27... Nc5 $1 $19 {[%emt 0:00:13]} 28. Qd5 {[%emt 0:00:07]} Bg5 {[%emt 0:01:32]} (28... Nxa4 $19 {has better winning chances.} 29. Re2 Rcd8) 29. Nxg5 $17 {[%emt 0:00:30]} Qxg5 {[%emt 0:00:07]} 30. Bd6 {[%emt 0:00:46]} (30. Bg3 $17 {is a better defense.} Qxd5 31. Rxd5) 30... Qxd5 $19 {[%emt 0:00:30]} 31. Rxd5 {[%emt 0:00:12]} Nxa4 {[%emt 0:00:11]} 32. Rxh5 {[%emt 0:00:53]} (32. Ra1 $142 Nxb2 33. Rxa6) 32... Nxb2 {[%emt 0:00:10]} 33. Rd4 {[%emt 0:00:24]} Nc4 {[%emt 0:00:10]} 34. Be7 {[%emt 0:00:31]} Ne3 {[%emt 0:00:59] ...f6 is the strong threat.} ({And not} 34... Rxe7 35. Rdh4 f6 36. Rh8+ Kf7 37. Rxc8 $11) 35. Re4 $2 {[%emt 0:00:33]} (35. Rd7) 35... Nf1+ {[%emt 0:00:04] Weighted Error Value: White=0.60/Black=0.12 (very precise)} 0-1

[Event "Charlotte IM-D May 2022"]
[Site "Charlotte"]
[Date "2022.05.05"]
[Round "1.4"]
[White "Kanli, Alperen"]
[Black "Nakada, Akira"]
[Result "0-1"]
[ECO "E20"]
[WhiteElo "2173"]
[BlackElo "2324"]
[Annotator "TA"]
[PlyCount "70"]
[EventDate "2022.05.04"]
[EventType "tourn"]
[EventCountry "USA"]
[SourceTitle "playchess.com"]
[Source "ChessBase"]
[SourceQuality "1"]
[TimeControl "5400+30"]

{[%evp 9,70,-15,-2,0,8,0,-8,-17,-12,-7,-15,-11,-5,-11,-11,-4,-14,-31,-34,-36,-37,-93,-76,-94,-72,-82,-84,-86,-84,-120,-83,-98,-85,-105,-91,-96,-93,-126,-122,-159,-130,-121,-43,-220,-206,-317,-301,-283,-205,-274,-256,-378,-342,-531,-528,-947,-944,-927,-914,-1884,-1764,-1835,-1620]} 1. d4 {[%emt 0:00:13]} Nf6 {[%emt 0:00:04]} 2. c4 {[%emt 0:00:06]} e6 {[%emt 0:00:04]} 3. Nc3 {[%emt 0:01:23]} Bb4 {[%emt 0:00:04]} 4. f3 {[%emt 0:00:28]} c5 {[%emt 0:00:04]} 5. d5 {[%emt 0:00:13]} b5 {[%emt 0:00:05]} 6. e4 {[%emt 0:00:12] E20: Nimzo-Indian: 4 g3 and 4 f3.} d6 $1 {[%emt 0:00:04][%mdl 4] now scores much better than the old 6...bxc4.} 7. Nge2 {[%emt 0:00:22]} bxc4 {[%emt 0:00:11] Threatening ...exd5.} 8. Nf4 {[%emt 0:00:05] The position is equal.} e5 {[%emt 0:00:03]} 9. Nfe2 {[%emt 0:00:08]} Nbd7 {[%emt 0:00:02]} 10. Ng3 {[%emt 0:00:16]} Nb6 $36 {[%emt 0:00:03][%mdl 2048] White is under pressure.} 11. Be2 {[%emt 0:00:14]} Ng8 {[%emt 0:00:04][%cal Bf6g8,Bg8e7,Be7g6,Bg6f4][%mdl 32]} 12. O-O {[%emt 0:00:09]} Ne7 {[%emt 0:00:04]} 13. f4 {[%emt 0:01:04]} exf4 {[%emt 0:00:05]} 14. Bxf4 {[%emt 0:00:27] Threatens to win with Qc1.} Ng6 {[%emt 0:00:04] [#]} 15. Nh5 $146 {[%emt 0:16:55]} (15. Qc1 $15 Bxc3 16. Qxc3 Nxf4 17. Rxf4 (17. Qxg7 Nxe2+ 18. Nxe2 Rf8 $17)) ({Predecessor:} 15. Be3 O-O 16. Qd2 Re8 17. Rf2 Bd7 18. Raf1 f6 19. Nf5 Bxf5 20. exf5 Ne7 21. Bf4 Nxf5 {0-1 (46) Pantzar,M (2421)-Wagner,D (2581) Chess.com INT 2021}) 15... Bxc3 {[%emt 0:12:01]} 16. bxc3 {[%emt 0:00:11]} Nxf4 {[%emt 0:00:30]} 17. Rxf4 {[%emt 0:06:45]} O-O {[%emt 0:02:23]} 18. Qe1 {[%emt 0:02:20] Strongly threatening Qg3.} Qg5 {[%emt 0:17:51]} 19. Qf2 {[%emt 0:19:02]} Rb8 {[%emt 0:07:42]} 20. Rf1 {[%emt 0:13:46][%cal Rf4f7] [#]} Rb7 {[%emt 0:00:25]} 21. Bd1 {[%emt 0:09:42]} f6 {[%emt 0:08:29]} 22. Ng3 {[%emt 0:10:30]} Qe5 {[%emt 0:11:19]} 23. Qf3 {[%emt 0:03:16]} Bd7 {[%emt 0:07:07]} 24. Nf5 {[%emt 0:04:16]} Bxf5 {[%emt 0:01:13]} 25. Rxf5 {[%emt 0:00:08] [#]} Qe7 {[%emt 0:00:14]} (25... Qe8 $1 $17 {...Nd7 is the strong threat.} 26. Qe2 Qe7) 26. g4 $2 {[%emt 0:07:45] Now White is beyond hope.} (26. e5 $1 $15) 26... Nd7 $19 {[%emt 0:00:28]} 27. Ba4 {[%emt 0:02:50]} (27. g5 $142) 27... Ne5 {[%emt 0:01:07]} 28. Qg3 {[%emt 0:00:01]} Nf7 {[%emt 0:03:49] Against g5} 29. Bc2 {[%emt 0:00:45]} Rb2 {[%emt 0:01:40][%csl LRa2,LRc2]} 30. R1f2 {[%emt 0:00:55]} (30. R5f2 {was worth a try.} Rfb8 31. a4) 30... Rfb8 {[%emt 0:00:05]} 31. g5 {[%emt 0:00:57] [#]} (31. a4 $142) 31... Rxc2 $1 {[%emt 0:02:50][%mdl 512] Black is clearly winning.} 32. Rxc2 {[%emt 0:00:20] aiming for gxf6.} (32. gxf6 Rc1+) 32... Qxe4 {[%emt 0:00:04]} 33. gxf6 {[%emt 0:00:44]} g6 {[%emt 0:00:03]} 34. Rcf2 {[%emt 0:01:02]} Rb1+ {[%emt 0:27:09]} 35. Rf1 {[%emt 0:00:30]} Qxf5 {Weighted Error Value: White=0.67/Black=0.09 (flawless)} 0-1

[Event "Charlotte IM-D May 2022"]
[Site "Charlotte"]
[Date "2022.05.05"]
[Round "2.1"]
[White "Rosenberg, Evan S"]
[Black "Matros, Alexander"]
[Result "0-1"]
[ECO "A46"]
[WhiteElo "2035"]
[BlackElo "2339"]
[Annotator "TA"]
[PlyCount "56"]
[EventDate "2022.05.04"]
[EventType "tourn"]
[EventCountry "USA"]
[SourceTitle "playchess.com"]
[Source "ChessBase"]
[SourceQuality "1"]
[TimeControl "5400+30"]

{[%evp 9,56,3,0,-17,5,-9,0,-8,-6,0,71,0,0,0,0,0,62,8,12,-34,-42,-26,-54,-56,-54,-68,-62,-89,-92,-91,-93,-397,-382,-410,-366,-597,-572,-746,-737,-962,-761,-1122,-1117,-1644,-1693,-2867,-2779,-1579,-1880]} 1. d4 {[%emt 0:00:00] ChessBase Website} Nf6 {[%emt 0:00:02]} 2. Nf3 e6 {[%emt 1:31:28]} 3. g3 {[%emt 1:32:00]} d5 {[%emt 0:00:30]} 4. Bg2 {[%emt 0:00:30]} b5 {[%emt 0:00:30]} 5. a4 {[%emt 0:00:30]} b4 {[%emt 0:00:00]} 6. a5 {A46: 1 d4 Nf6 2 Nf3 e6: Torre, London and Colle Systems.} c5 {[%emt 0:01:00]} 7. O-O {[%emt 0:01:00][%cal Oc2c4]} Nc6 {[%emt 0:00:00]} 8. c4 {The position is equal.} bxc3 {[%emt 0:00:00]} 9. Nxc3 Ba6 {[%emt 0:00:00] [#]} (9... Rb8 $11 {remains equal.}) 10. dxc5 $146 ({White should try} 10. Ne5 $16 Nxe5 11. dxe5) ({Predecessor:} 10. Bg5 Rc8 11. Qa4 Qd7 12. dxc5 Bxc5 13. Rfc1 Nb4 14. Ne5 Qxa4 15. Nxa4 Bd6 16. Rxc8+ Bxc8 {½-½ (53) Hou,Y (2618)-Kosteniuk,A (2527) Khanty-Mansiysk 2014 CBM 160 [ChessBase Website]}) 10... Bxc5 $11 {[%emt 0:02:00]} 11. Qa4 {[%emt 0:02:00]} Qd7 {[%emt 0:00:00]} 12. Bg5 {[%emt 0:00:30] aiming for Bxf6.} Be7 {[%emt 0:01:00]} ({Black should play} 12... Nb4 $11) 13. Rfc1 {[%emt 0:00:30]} (13. Rfd1 $1 $14) 13... Nb4 $1 {[%emt 0:00:30]} 14. Bxf6 {[%emt 0:00:30]} (14. Nd4 $11) 14... Qxa4 $15 {[%emt 0:00:30]} 15. Rxa4 {[%emt 0:00:00]} gxf6 {[%emt 0:00:00][%cal Bg7f6,Bf6f5,Bf5e4][%mdl 32]} 16. Nd4 {[%emt 0:01:00]} Rb8 {[%emt 0:00:00] Against Ncb5} 17. Bf3 Kd7 {[%emt 0:00:00]} 18. Rd1 f5 {[%emt 0:02:00] Inhibits e4.} 19. Bh5 {[%emt 0:00:00]} Rhf8 {[%emt 0:00:30]} 20. e4 $2 {[%emt 0:02:00][%mdl 8192] [#] This costs White the game.} (20. h3 $17) 20... fxe4 $19 {[%emt 0:00:00]} 21. Bg4 f5 {[%emt 0:01:00]} 22. Bh3 {[%emt 0:01:00]} (22. Nxf5 {was worth a try.} exf5 23. Nxd5 Nxd5 24. Rxd5+ Kc6 25. Rxf5) 22... Nd3 {[%emt 0:00:00] Black is clearly winning.} 23. Nxd5 {[%emt 0:00:00]} exd5 {[%emt 0:00:00]} 24. Nxf5 {[%emt 0:00:00]} Bc5 {[%emt 0:00:00]} 25. Nd4+ {[%emt 0:00:00]} Kd6 {[%emt 0:00:00]} 26. Nf5+ {[%emt 0:00:26]} Ke5 {[%emt 0:00:00]} 27. Ne3 {[%emt 0:01:22]} Bxe3 {[%emt 0:00:00]} 28. fxe3 {[%emt 0:00:18]} Nxb2 {[%emt 0:00:00] Weighted Error Value: White=1.16/Black=0.20 (precise)} 0-1

[Event "Charlotte IM-D May 2022"]
[Site "Charlotte"]
[Date "2022.05.05"]
[Round "2.2"]
[White "Nakada, Akira"]
[Black "Zaloznyy, Mike"]
[Result "1-0"]
[ECO "A50"]
[WhiteElo "2324"]
[BlackElo "2125"]
[Annotator "TA"]
[PlyCount "67"]
[EventDate "2022.05.04"]
[EventType "tourn"]
[EventCountry "USA"]
[SourceTitle "playchess.com"]
[Source "ChessBase"]
[SourceQuality "1"]
[TimeControl "5400+30"]

{[%evp 11,67,27,25,15,20,30,14,22,16,23,19,20,14,26,22,10,30,24,37,35,31,0,109,115,115,101,111,83,205,200,196,204,190,183,206,209,297,290,326,295,394,406,404,398,397,381,1027,1033,1316,1298,29971,29972,6691,6691,2398,2208,2164,2043]} 1. c4 {[%emt 0:00:07]} b6 {[%emt 0:00:12]} 2. Nc3 {[%emt 0:00:17]} Bb7 {[%emt 0:00:17]} 3. d4 {[%emt 0:00:06]} Nf6 {[%emt 0:00:45]} 4. Qc2 {[%emt 0:00:07]} d5 {[%emt 0:00:26]} 5. cxd5 {[%emt 0:00:05]} Nxd5 {[%emt 0:00:18]} 6. Nf3 {[%emt 0:00:05]} e6 {[%emt 0:00:19]} 7. e4 {[%emt 0:00:04] A50: Queen's Fianchetto Defence (1 d4 Nf6 2 c4 b6).} Nxc3 {[%emt 0:00:22]} 8. bxc3 {[%emt 0:00:05]} Be7 {[%emt 0:00:26]} 9. Bb5+ {[%emt 0:00:08] The position is equal.} c6 {[%emt 0:00:26]} 10. Bd3 {[%emt 0:00:05]} c5 {[%emt 0:00:15]} 11. O-O {[%emt 0:00:19][%cal Od4d5]} cxd4 {[%emt 0:00:22]} 12. cxd4 {[%emt 0:00:04]} O-O {[%emt 0:00:20]} 13. Bb2 $36 {[%emt 0:00:04][%mdl 2048] White fights for an advantage.} Nd7 {[%emt 0:01:50]} 14. Rad1 {[%emt 0:04:21]} Rc8 {[%emt 0:01:37]} 15. Qe2 {[%emt 0:02:52] [#]} Bb4 $146 {[%emt 0:00:21]} ({Predecessor:} 15... Bd6 16. h4 h6 17. Rfe1 Qe7 18. Qe3 e5 19. Bb5 Bc6 20. Ba6 Rcd8 21. dxe5 Nxe5 22. Qc3 Nxf3+ 23. gxf3 {0-1 (44) Tarjan,J (2455)-Wieczorek,O (2435) Chess.com INT 2016}) 16. h4 {[%emt 0:24:11]} Nf6 {[%emt 0:14:46] [#]} (16... Qe7 $11 {remains equal.}) 17. d5 $1 $16 {[%emt 0:08:50]} exd5 {[%emt 1:15:58]} 18. e5 {[%emt 0:03:06]} Re8 {[%emt 0:00:00]} 19. Bf5 {[%emt 0:18:25]} Rc4 {[%emt 0:00:00] [#] A mistake that costs the game.} (19... Qe7 $16) 20. Qxc4 $1 $18 {[%emt 0:01:12][%mdl 512]} dxc4 {[%emt 0:00:00]} 21. Rxd8 {[%emt 0:00:05]} Rxd8 {[%emt 0:00:00]} 22. exf6 {[%emt 0:00:03]} c3 {[%emt 0:00:00] [#]} 23. Ba1 {[%emt 0:00:47]} Ba6 {[%emt 0:00:00]} (23... Bxf3 $142 24. gxf3 gxf6) 24. Rc1 {[%emt 0:00:48]} (24. Rb1 gxf6 25. Rxb4 Rd1+ 26. Kh2 Rxa1 $18) 24... Ba3 {[%emt 0:00:00]} 25. Re1 {[%emt 0:00:05]} ({Inferior is} 25. Rxc3 Rd1+ 26. Kh2 Bd6+ 27. g3 Rxa1 $17) 25... Bb4 {[%emt 0:01:06]} 26. a3 {[%emt 0:00:13]} Ba5 {[%emt 0:00:50]} 27. Re3 {[%emt 0:03:02]} ({Much less strong is} 27. fxg7 Bb7 28. Bc2 Bxf3 $18) 27... gxf6 {[%emt 0:02:28]} 28. Bxc3 {[%emt 0:00:11]} Rd5 $2 {[%emt 0:00:22] [#]} (28... Bxc3 29. Rxc3 Rd5) 29. Bxf6 $1 {[%emt 0:00:19][%cal Re3e8]} Bb5 {[%emt 0:00:37] Inhibits Re8+.} (29... Rd1+ 30. Kh2) 30. Nd4 {[%emt 0:01:38] Threatening mate with Rg3+.} Bd2 {[%emt 0:00:35]} 31. Rg3+ {[%emt 0:01:27]} Kf8 {[%emt 0:00:04]} 32. Bxh7 {[%emt 0:00:15][%csl Gh7][%cal Rg3g8] White is clearly winning.} Ke8 {[%emt 0:00:39]} 33. Rg8+ {[%emt 0:00:06]} Kd7 {[%emt 0:00:05]} 34. Rd8+ {[%emt 0:00:03] Weighted Error Value: White=0.03 (flawless) /Black=0.61} 1-0

[Event "Charlotte IM-D May 2022"]
[Site "Charlotte"]
[Date "2022.05.05"]
[Round "2.3"]
[White "Woodward, Andy"]
[Black "Kanli, Alperen"]
[Result "1-0"]
[ECO "D20"]
[WhiteElo "2354"]
[BlackElo "2173"]
[Annotator "TA"]
[PlyCount "55"]
[EventDate "2022.05.04"]
[EventType "tourn"]
[EventCountry "USA"]
[SourceTitle "playchess.com"]
[Source "ChessBase"]
[SourceQuality "1"]
[TimeControl "5400+30"]

{[%evp 13,55,35,20,33,39,29,48,32,34,42,35,40,41,37,33,39,54,51,70,52,148,125,308,326,464,471,446,427,1137,1132,1115,1116,1102,1067,1245,1217,1914,1851,1904,1242,1238,1213,1238,1223]} 1. d4 {[%emt 0:00:06]} d5 {[%emt 0:00:37]} 2. c4 {[%emt 0:00:17]} dxc4 {[%emt 0:00:07]} 3. e4 {[%emt 0:00:20]} e5 {[%emt 0:00:18]} 4. Nf3 {[%emt 0:00:14]} exd4 {[%emt 0:00:29]} 5. Bxc4 {[%emt 0:00:13]} Nc6 {[%emt 0:02:04]} 6. O-O {[%emt 0:00:11]} Be6 {[%emt 0:00:32]} 7. Bb5 {[%emt 0:00:20]} Bc5 {[%emt 0:02:50]} 8. b4 {[%emt 0:00:29] D20: Queen's Gambit Accepted: 3 e3 and 3 e4.} Bb6 $1 {[%emt 0:05:53]} 9. a4 {[%emt 0:02:18]} a6 {[%emt 0:01:24]} 10. Bxc6+ {[%emt 0:00:14] White is slightly better.} bxc6 {[%emt 0:00:17]} 11. a5 {[%emt 0:00:27] 11.a5 has become a bit dusty these days.} Ba7 {[%emt 0:00:46]} 12. Bb2 {[%emt 0:00:14][%cal Rb2d4]} Bg4 {[%emt 0:04:46]} 13. Qc2 $36 {[%emt 0:05:58][%mdl 2048] Black is under pressure.} Bxf3 {[%emt 0:20:28]} 14. Qxc6+ {[%emt 0:02:00]} Kf8 {[%emt 0:00:51]} 15. gxf3 {[%emt 0:00:07] [#] Hoping for Rc1.} Ne7 $146 {[%emt 0:03:55]} ({Predecessor:} 15... h5 16. Bc1 Qc8 17. Bf4 Ne7 18. Qxc7 g5 19. Qxc8+ Rxc8 20. Bd2 g4 21. b5 gxf3 22. bxa6 {1-0 (46) Cade,S (2280)-Vera Cruz Jr,A (2321) ICCF email 2016}) 16. Qxa6 {[%emt 0:03:11] Threatens to win with Rc1. White is much more active. The black rooks are badly placed.} Ng6 {[%emt 0:01:14] [#]} (16... h5 $1 $14) 17. Kh1 $1 $16 {[%emt 0:00:26]} Qg5 $2 {[%emt 0:14:27] Prevents Nd2. Loses the game.} (17... h5 $16 {was called for.}) 18. Qb7 $18 {[%emt 0:04:24][%csl LRa8,LRc7]} Qf4 {[%emt 0:15:07] [#]} (18... Nf4 $142 19. Rg1 (19. Qxa8+ $2 {loses.} Ke7 $19) 19... Qd8) 19. Nd2 $1 {[%emt 0:08:46][%mdl 512] White is clearly winning.} Ke7 {[%emt 0:00:42] And now ...Rhb8 would win.} 20. Ba3 {[%emt 0:01:47]} Rhb8 {[%emt 0:07:19]} (20... Qxd2 21. b5+ Bc5 22. Bxc5+ Kf6 23. Qc6+ Kg5 24. Rg1+ Kh5 25. Qd5+ Ne5 26. Qxe5+) (20... Kf6 $142 21. Qc6+ Qd6) 21. b5+ {[%emt 0:01:08]} Kd8 {[%emt 0:00:45]} 22. Qd5+ {[%emt 0:00:11]} Ke8 {[%emt 0:00:17] [#]} 23. b6 $1 {[%emt 0:00:37]} cxb6 {[%emt 0:00:24] [#]} (23... Bxb6 24. Qb5+) 24. axb6 $1 {[%emt 0:02:14]} Bxb6 {[%emt 0:00:14] [#]} (24... Rxb6 25. Qxa8+) 25. Bd6 $1 {[%emt 0:00:07]} Rxa1 {[%emt 0:00:46]} (25... Ra7 26. Bxf4) 26. Bxf4 {[%emt 0:00:07] Threatening mate with Qc6+.} Rxf1+ {[%emt 0:00:13]} 27. Nxf1 {[%emt 0:00:03] Black must now prevent Qc6+.} Nxf4 {[%emt 0:00:10]} 28. Qe5+ {[%emt 0:00:32] Weighted Error Value: White=0.01 (flawless) /Black=0.42} 1-0